[Event "Titled Tuesday Blitz August 15 Late 2023"]
[White "Hakobyan, Aram"]
[Black "Firouzja, Alireza"]
[WhiteFideId "13306677"]
[BlackFideId "12573981"]
[WhiteElo "2979"]
[BlackElo "3128"]
[Result "1-0"]
[Round "8"]
[TimeControl "180+1"]
[Date "2023.08.15"]
[WhiteClock "0:00:05"]
[BlackClock "0:00:00"]
[Board "2"]

1. d4 {[%clk 0:03:00]}  Nf6 {[%clk 0:02:55]} 2. c4 {[%clk 0:03:01]}  e6 {[%clk 0:02:54]} 3. Nc3 {[%clk 0:03:01]}  Bb4 {[%clk 0:02:55]} 4. e3 {[%clk 0:03:01]}  b6 {[%clk 0:02:55]} 5. Bd3 {[%clk 0:02:57]}  Bb7 {[%clk 0:02:55]} 6. Nf3 {[%clk 0:02:53]}  c5 {[%clk 0:02:55]} 7. O-O {[%clk 0:02:51]}  O-O {[%clk 0:02:55]} 8. a3 {[%clk 0:02:46]}  Bxc3 {[%clk 0:02:51]} 9. bxc3 {[%clk 0:02:47]}  d6 {[%clk 0:02:40]} 10. Nd2 {[%clk 0:02:47]}  Nc6 {[%clk 0:02:40]} 11. Bb2 {[%clk 0:02:47]}  Rc8 {[%clk 0:02:33]} 12. e4 {[%clk 0:02:47]}  e5 {[%clk 0:02:32]} 13. d5 {[%clk 0:02:45]}  Ne7 {[%clk 0:02:33]} 14. Bc1 {[%clk 0:02:40]}  Ng6 {[%clk 0:02:32]} 15. Re1 {[%clk 0:02:39]}  Nf4 {[%clk 0:02:27]} 16. Bc2 {[%clk 0:02:31]}  Ba6 {[%clk 0:02:27]} 17. g3 {[%clk 0:02:29]}  Ng6 {[%clk 0:02:27]} 18. Bd3 {[%clk 0:02:27]}  Rc7 {[%clk 0:02:24]} 19. Nf1 {[%clk 0:02:26]}  Bc8 {[%clk 0:02:22]} 20. Ne3 {[%clk 0:02:24]}  Kh8 {[%clk 0:02:22]} 21. a4 {[%clk 0:02:22]}  a5 {[%clk 0:02:19]} 22. Ra2 {[%clk 0:02:22]}  Ng8 {[%clk 0:02:18]} 23. Nf5 {[%clk 0:01:59]}  N6e7 {[%clk 0:02:13]} 24. Nxe7 {[%clk 0:01:49]}  Rxe7 {[%clk 0:02:10]} 25. Qh5 {[%clk 0:01:44]}  Bd7 {[%clk 0:01:35]} 26. f4 {[%clk 0:01:41]}  Qe8 {[%clk 0:01:22]} 27. f5 {[%clk 0:01:36]}  Bxa4 {[%clk 0:01:18]} 28. g4 {[%clk 0:01:36]}  f6 {[%clk 0:01:11]} 29. Qh4 {[%clk 0:01:35]}  Bb3 {[%clk 0:01:09]} 30. Ra3 {[%clk 0:01:20]}  a4 {[%clk 0:01:06]} 31. Kh1 {[%clk 0:01:19]}  b5 {[%clk 0:00:54]} 32. cxb5 {[%clk 0:01:16]}  c4 {[%clk 0:00:55]} 33. Be2 {[%clk 0:01:16]}  Qxb5 {[%clk 0:00:54]} 34. Be3 {[%clk 0:01:11]}  Bc2 {[%clk 0:00:53]} 35. Bf3 {[%clk 0:01:10]}  Qb2 {[%clk 0:00:51]} 36. Bc1 {[%clk 0:01:09]}  Qb6 {[%clk 0:00:41]} 37. Ra2 {[%clk 0:01:06]}  Qb3 {[%clk 0:00:30]} 38. Ra3 {[%clk 0:01:04]}  Qb8 {[%clk 0:00:29]} 39. Rg1 {[%clk 0:01:00]}  Rb7 {[%clk 0:00:14]} 40. g5 {[%clk 0:01:00]}  Rb3 {[%clk 0:00:12]} 41. Qg3 {[%clk 0:00:43]}  Qc7 {[%clk 0:00:11]} 42. Qg2 {[%clk 0:00:29]}  Bd3 {[%clk 0:00:08]} 43. Rxa4 {[%clk 0:00:16]}  Rxc3 {[%clk 0:00:07]} 44. Ra6 {[%clk 0:00:17]}  fxg5 {[%clk 0:00:06]} 45. Rc6 {[%clk 0:00:17]}  Qf7 {[%clk 0:00:05]} 46. Bxg5 {[%clk 0:00:12]}  Rc2 {[%clk 0:00:05]} 47. Qg3 {[%clk 0:00:11]}  Nf6 {[%clk 0:00:04]} 48. Bxf6 {[%clk 0:00:09]}  gxf6 {[%clk 0:00:04]} 49. Rxd6 {[%clk 0:00:10]}  Rg8 {[%clk 0:00:03]} 50. Rxf6 {[%clk 0:00:05]}  Rxg3 {[%clk 0:00:02]} 51. Rxf7 {[%clk 0:00:06]}  Rxg1+ {[%clk 0:00:02]} 52. Kxg1 {[%clk 0:00:07]}  c3 {[%clk 0:00:02]} 53. Rc7 {[%clk 0:00:07]}  Rc1+ {[%clk 0:00:02]} 54. Kf2 {[%clk 0:00:06]}  c2 {[%clk 0:00:02]} 55. d6 {[%clk 0:00:05]}  Rf1+ {[%clk 0:00:00]} 56. Ke3 {[%clk 0:00:05]} 1-0


[Site "https://www.chess.com"]

[Event "Titled Tuesday Blitz August 15 Late 2023"]
[White "Drygalov, Sergey"]
[Black "Dubov, Daniil"]
[WhiteFideId "24171743"]
[BlackFideId "24126055"]
[WhiteElo "2969"]
[BlackElo "3048"]
[Result "1/2-1/2"]
[Round "8"]
[TimeControl "180+1"]
[Date "2023.08.15"]
[WhiteClock "0:00:12"]
[BlackClock "0:00:07"]
[Board "3"]

1. d4 {[%clk 0:03:00]}  Nf6 {[%clk 0:02:59]} 2. c4 {[%clk 0:03:00]}  e6 {[%clk 0:02:59]} 3. Nf3 {[%clk 0:03:01]}  d5 {[%clk 0:03:00]} 4. Nc3 {[%clk 0:03:01]}  c6 {[%clk 0:02:59]} 5. e3 {[%clk 0:03:00]}  Nbd7 {[%clk 0:02:59]} 6. Qc2 {[%clk 0:03:01]}  a5 {[%clk 0:02:58]} 7. Be2 {[%clk 0:02:56]}  dxc4 {[%clk 0:02:57]} 8. Bxc4 {[%clk 0:02:56]}  b5 {[%clk 0:02:58]} 9. Bd3 {[%clk 0:02:56]}  Bb7 {[%clk 0:02:57]} 10. e4 {[%clk 0:02:49]}  b4 {[%clk 0:02:51]} 11. Na4 {[%clk 0:02:49]}  c5 {[%clk 0:02:51]} 12. dxc5 {[%clk 0:02:46]}  Rc8 {[%clk 0:02:41]} 13. Be3 {[%clk 0:02:46]}  Ng4 {[%clk 0:02:40]} 14. Bb5 {[%clk 0:02:21]}  Nxe3 {[%clk 0:02:39]} 15. fxe3 {[%clk 0:02:21]}  Bc6 {[%clk 0:02:40]} 16. Bxc6 {[%clk 0:02:21]}  Rxc6 {[%clk 0:02:40]} 17. Nd4 {[%clk 0:02:21]}  Rc8 {[%clk 0:02:39]} 18. c6 {[%clk 0:02:18]}  Ne5 {[%clk 0:02:37]} 19. O-O {[%clk 0:02:00]}  Bd6 {[%clk 0:02:36]} 20. Rac1 {[%clk 0:01:54]}  Ng4 {[%clk 0:02:31]} 21. e5 {[%clk 0:01:18]}  Bxe5 {[%clk 0:02:26]} 22. Nf3 {[%clk 0:01:18]}  Bd6 {[%clk 0:02:12]} 23. Qe4 {[%clk 0:01:05]}  Nf6 {[%clk 0:02:10]} 24. Qd4 {[%clk 0:01:05]}  O-O {[%clk 0:02:01]} 25. Rfd1 {[%clk 0:01:05]}  Bc7 {[%clk 0:01:46]} 26. Qxd8 {[%clk 0:00:55]}  Rfxd8 {[%clk 0:01:45]} 27. Kf2 {[%clk 0:00:49]}  Rxd1 {[%clk 0:01:37]} 28. Rxd1 {[%clk 0:00:49]}  Kf8 {[%clk 0:01:37]} 29. Ke2 {[%clk 0:00:44]}  Ke7 {[%clk 0:01:35]} 30. h3 {[%clk 0:00:44]}  Bb8 {[%clk 0:01:15]} 31. Nd4 {[%clk 0:00:42]}  Nd5 {[%clk 0:01:00]} 32. e4 {[%clk 0:00:34]}  Nf4+ {[%clk 0:00:59]} 33. Kf3 {[%clk 0:00:34]}  Ng6 {[%clk 0:00:59]} 34. Nb6 {[%clk 0:00:30]}  Ne5+ {[%clk 0:00:55]} 35. Ke2 {[%clk 0:00:29]}  Rc7 {[%clk 0:00:54]} 36. Nd7 {[%clk 0:00:20]}  Nxd7 {[%clk 0:00:40]} 37. cxd7 {[%clk 0:00:20]}  Kd8 {[%clk 0:00:41]} 38. a3 {[%clk 0:00:14]}  g6 {[%clk 0:00:26]} 39. axb4 {[%clk 0:00:14]}  axb4 {[%clk 0:00:27]} 40. g4 {[%clk 0:00:12]}  Rc4 {[%clk 0:00:11]} 41. Kd3 {[%clk 0:00:11]}  Rc7 {[%clk 0:00:10]} 42. Ke2 {[%clk 0:00:11]}  Rc4 {[%clk 0:00:10]} 43. b3 {[%clk 0:00:09]}  Rc3 {[%clk 0:00:10]} 44. Rd3 {[%clk 0:00:07]}  Rxd3 {[%clk 0:00:05]} 45. Kxd3 {[%clk 0:00:08]}  Kxd7 {[%clk 0:00:06]} 46. Kc4 {[%clk 0:00:09]}  Ba7 {[%clk 0:00:03]} 47. Nb5 {[%clk 0:00:07]}  Bf2 {[%clk 0:00:03]} 48. Kxb4 {[%clk 0:00:08]}  Kc6 {[%clk 0:00:03]} 49. Kc4 {[%clk 0:00:08]}  Kd7 {[%clk 0:00:02]} 50. Nc3 {[%clk 0:00:08]}  f5 {[%clk 0:00:02]} 51. exf5 {[%clk 0:00:07]}  exf5 {[%clk 0:00:02]} 52. gxf5 {[%clk 0:00:06]}  gxf5 {[%clk 0:00:03]} 53. Kd5 {[%clk 0:00:06]}  Be1 {[%clk 0:00:02]} 54. Ne2 {[%clk 0:00:06]}  f4 {[%clk 0:00:01]} 55. Nxf4 {[%clk 0:00:06]}  Ke7 {[%clk 0:00:01]} 56. Nd3 {[%clk 0:00:06]}  Bd2 {[%clk 0:00:02]} 57. Ne5 {[%clk 0:00:05]}  Kf6 {[%clk 0:00:02]} 58. Ke4 {[%clk 0:00:06]}  Bc3 {[%clk 0:00:02]} 59. Nf3 {[%clk 0:00:06]}  Ke6 {[%clk 0:00:02]} 60. Nd4+ {[%clk 0:00:05]}  Kf6 {[%clk 0:00:02]} 61. Ne2 {[%clk 0:00:05]}  Bb4 {[%clk 0:00:02]} 62. Nf4 {[%clk 0:00:06]}  Bd6 {[%clk 0:00:02]} 63. Nd5+ {[%clk 0:00:06]}  Ke6 {[%clk 0:00:02]} 64. Ne3 {[%clk 0:00:06]}  Bc5 {[%clk 0:00:02]} 65. Nf5 {[%clk 0:00:07]}  Ba3 {[%clk 0:00:01]} 66. Nd4+ {[%clk 0:00:07]}  Kf6 {[%clk 0:00:02]} 67. Nc6 {[%clk 0:00:08]}  Kg5 {[%clk 0:00:01]} 68. Kf3 {[%clk 0:00:08]}  Kf6 {[%clk 0:00:02]} 69. Kf4 {[%clk 0:00:07]}  Ke6 {[%clk 0:00:02]} 70. Ke4 {[%clk 0:00:08]}  Kd6 {[%clk 0:00:02]} 71. Nd4 {[%clk 0:00:08]}  Kc5 {[%clk 0:00:02]} 72. Kd3 {[%clk 0:00:08]}  Kd5 {[%clk 0:00:02]} 73. Nc2 {[%clk 0:00:09]}  Bd6 {[%clk 0:00:02]} 74. Ne3+ {[%clk 0:00:09]}  Ke6 {[%clk 0:00:02]} 75. Ke4 {[%clk 0:00:10]}  Bc5 {[%clk 0:00:02]} 76. Nf5 {[%clk 0:00:09]}  Ba3 {[%clk 0:00:02]} 77. Nd4+ {[%clk 0:00:10]}  Kf6 {[%clk 0:00:03]} 78. h4 {[%clk 0:00:09]}  Kg6 {[%clk 0:00:03]} 79. Nf3 {[%clk 0:00:09]}  Kh5 {[%clk 0:00:03]} 80. Kf5 {[%clk 0:00:09]}  Be7 {[%clk 0:00:03]} 81. Ke6 {[%clk 0:00:08]}  Ba3 {[%clk 0:00:03]} 82. Kf5 {[%clk 0:00:08]}  Be7 {[%clk 0:00:03]} 83. Ng5 {[%clk 0:00:09]}  Kxh4 {[%clk 0:00:02]} 84. Nxh7 {[%clk 0:00:09]}  Kg3 {[%clk 0:00:02]} 85. Ke6 {[%clk 0:00:09]}  Ba3 {[%clk 0:00:02]} 86. Nf6 {[%clk 0:00:09]}  Kf4 {[%clk 0:00:03]} 87. Kd5 {[%clk 0:00:09]}  Kf5 {[%clk 0:00:03]} 88. Nd7 {[%clk 0:00:09]}  Kg6 {[%clk 0:00:03]} 89. Nc5 {[%clk 0:00:07]}  Kf7 {[%clk 0:00:03]} 90. Kc6 {[%clk 0:00:08]}  Ke7 {[%clk 0:00:03]} 91. Nd3 {[%clk 0:00:07]}  Ke6 {[%clk 0:00:03]} 92. Nc5+ {[%clk 0:00:07]}  Ke7 {[%clk 0:00:03]} 93. Kb5 {[%clk 0:00:07]}  Kd6 {[%clk 0:00:03]} 94. Na6 {[%clk 0:00:08]}  Kd7 {[%clk 0:00:02]} 95. Ka4 {[%clk 0:00:07]}  Bc1 {[%clk 0:00:02]} 96. b4 {[%clk 0:00:07]}  Kc8 {[%clk 0:00:03]} 97. b5 {[%clk 0:00:07]}  Be3 {[%clk 0:00:04]} 98. Kb4 {[%clk 0:00:07]}  Kb7 {[%clk 0:00:04]} 99. Nc5+ {[%clk 0:00:08]}  Kc8 {[%clk 0:00:04]} 100. Na4 {[%clk 0:00:07]}  Bd2+ {[%clk 0:00:04]} 101. Kc4 {[%clk 0:00:08]}  Be3 {[%clk 0:00:04]} 102. Kd5 {[%clk 0:00:09]}  Kb7 {[%clk 0:00:05]} 103. Kd6 {[%clk 0:00:09]}  Bf4+ {[%clk 0:00:04]} 104. Kd5 {[%clk 0:00:09]}  Be3 {[%clk 0:00:05]} 105. Ke4 {[%clk 0:00:09]}  Bf2 {[%clk 0:00:05]} 106. Kd3 {[%clk 0:00:09]}  Bg1 {[%clk 0:00:04]} 107. Nc3 {[%clk 0:00:10]}  Bf2 {[%clk 0:00:04]} 108. Kc4 {[%clk 0:00:10]}  Bg1 {[%clk 0:00:05]} 109. Ne4 {[%clk 0:00:11]}  Be3 {[%clk 0:00:05]} 110. Nd6+ {[%clk 0:00:11]}  Kb6 {[%clk 0:00:05]} 111. Nf5 {[%clk 0:00:12]}  Bf2 {[%clk 0:00:05]} 112. Ne7 {[%clk 0:00:13]}  Bg1 {[%clk 0:00:05]} 113. Nd5+ {[%clk 0:00:13]}  Kb7 {[%clk 0:00:06]} 114. Nb4 {[%clk 0:00:14]}  Bf2 {[%clk 0:00:06]} 115. Kd5 {[%clk 0:00:15]}  Bg1 {[%clk 0:00:07]} 116. Nc6 {[%clk 0:00:15]}  Kb6 {[%clk 0:00:07]} 117. Kc4 {[%clk 0:00:12]}  Kb7 {[%clk 0:00:07]} 1/2-1/2


[Site "https://www.chess.com"]

[Event "Titled Tuesday Blitz August 15 Late 2023"]
[White "Nakamura, Hikaru"]
[Black "Kramnik, Vladimir"]
[WhiteFideId "2016192"]
[BlackFideId "4101588"]
[WhiteElo "3219"]
[BlackElo "2965"]
[Result "1-0"]
[Round "8"]
[TimeControl "180+1"]
[Date "2023.08.15"]
[WhiteClock "0:00:10"]
[BlackClock "0:00:00"]
[Board "5"]

1. b3 {[%clk 0:03:00]}  e5 {[%clk 0:02:58]} 2. Bb2 {[%clk 0:03:01]}  Nc6 {[%clk 0:02:58]} 3. e3 {[%clk 0:03:01]}  Nf6 {[%clk 0:02:57]} 4. Bb5 {[%clk 0:03:00]}  Bd6 {[%clk 0:02:56]} 5. Ne2 {[%clk 0:03:00]}  O-O {[%clk 0:02:53]} 6. Ng3 {[%clk 0:02:59]}  a6 {[%clk 0:02:33]} 7. Bxc6 {[%clk 0:02:51]}  dxc6 {[%clk 0:02:33]} 8. e4 {[%clk 0:02:52]}  Be6 {[%clk 0:02:17]} 9. O-O {[%clk 0:02:50]}  c5 {[%clk 0:02:15]} 10. d3 {[%clk 0:02:47]}  Nd7 {[%clk 0:02:14]} 11. Nf5 {[%clk 0:02:41]}  Re8 {[%clk 0:02:01]} 12. Nxd6 {[%clk 0:02:26]}  cxd6 {[%clk 0:02:00]} 13. c4 {[%clk 0:02:26]}  f5 {[%clk 0:01:55]} 14. exf5 {[%clk 0:02:13]}  Bxf5 {[%clk 0:01:56]} 15. Nc3 {[%clk 0:02:14]}  Nf6 {[%clk 0:01:53]} 16. f4 {[%clk 0:02:14]}  Qd7 {[%clk 0:01:49]} 17. Qf3 {[%clk 0:02:05]}  exf4 {[%clk 0:01:40]} 18. Qxf4 {[%clk 0:01:42]}  Bxd3 {[%clk 0:01:40]} 19. Rfd1 {[%clk 0:01:42]}  Qf5 {[%clk 0:01:40]} 20. Qg3 {[%clk 0:01:38]}  Be2 {[%clk 0:01:04]} 21. Rxd6 {[%clk 0:01:20]}  Nh5 {[%clk 0:01:04]} 22. Qh4 {[%clk 0:01:06]}  Nf4 {[%clk 0:00:50]} 23. Nd5 {[%clk 0:00:55]}  Re4 {[%clk 0:00:33]} 24. Ne7+ {[%clk 0:00:47]}  Rxe7 {[%clk 0:00:33]} 25. Qxe7 {[%clk 0:00:46]}  Qg4 {[%clk 0:00:33]} 26. Rd8+ {[%clk 0:00:19]}  Rxd8 {[%clk 0:00:32]} 27. Qxd8+ {[%clk 0:00:20]}  Kf7 {[%clk 0:00:33]} 28. Qc7+ {[%clk 0:00:21]}  Ke8 {[%clk 0:00:21]} 29. Qb8+ {[%clk 0:00:21]}  Kd7 {[%clk 0:00:21]} 30. Qxb7+ {[%clk 0:00:21]}  Kd8 {[%clk 0:00:18]} 31. Qb8+ {[%clk 0:00:15]}  Kd7 {[%clk 0:00:18]} 32. Qa7+ {[%clk 0:00:15]}  Kd8 {[%clk 0:00:17]} 33. Qa8+ {[%clk 0:00:15]}  Kd7 {[%clk 0:00:16]} 34. Kh1 {[%clk 0:00:15]}  Nh3 {[%clk 0:00:07]} 35. Qd5+ {[%clk 0:00:14]}  Kc8 {[%clk 0:00:03]} 36. Qxc5+ {[%clk 0:00:14]}  Kb7 {[%clk 0:00:00]} 37. Be5 {[%clk 0:00:10]} 1-0


[Site "https://www.chess.com"]

[Event "Titled Tuesday Blitz August 15 Late 2023"]
[White "Fedoseev, Vladimir"]
[Black "Holt, Conrad"]
[WhiteFideId "24130737"]
[BlackFideId "2034387"]
[WhiteElo "3111"]
[BlackElo "2910"]
[Result "0-1"]
[Round "8"]
[TimeControl "180+1"]
[Date "2023.08.15"]
[WhiteClock "0:00:00"]
[BlackClock "0:00:05"]
[Board "7"]

1. b3 {[%clk 0:03:00]}  d5 {[%clk 0:02:58]} 2. Bb2 {[%clk 0:03:01]}  Bf5 {[%clk 0:02:58]} 3. e3 {[%clk 0:03:01]}  e6 {[%clk 0:02:58]} 4. Nc3 {[%clk 0:03:00]}  Nd7 {[%clk 0:02:54]} 5. g4 {[%clk 0:02:59]}  Bg6 {[%clk 0:02:54]} 6. h4 {[%clk 0:03:00]}  h5 {[%clk 0:02:53]} 7. g5 {[%clk 0:03:00]}  Bd6 {[%clk 0:02:51]} 8. Nge2 {[%clk 0:02:58]}  c6 {[%clk 0:02:47]} 9. Bg2 {[%clk 0:02:50]}  Ne7 {[%clk 0:02:46]} 10. f4 {[%clk 0:02:44]}  Qc7 {[%clk 0:02:44]} 11. d3 {[%clk 0:02:20]}  Nf5 {[%clk 0:02:36]} 12. Qd2 {[%clk 0:02:20]}  Bc5 {[%clk 0:02:35]} 13. Nd1 {[%clk 0:02:17]}  O-O-O {[%clk 0:02:31]} 14. d4 {[%clk 0:02:04]}  Be7 {[%clk 0:02:26]} 15. Nf2 {[%clk 0:02:04]}  c5 {[%clk 0:02:22]} 16. O-O-O {[%clk 0:02:01]}  c4 {[%clk 0:02:09]} 17. e4 {[%clk 0:01:59]}  dxe4 {[%clk 0:02:03]} 18. Nxe4 {[%clk 0:01:59]}  Nb6 {[%clk 0:02:01]} 19. N4c3 {[%clk 0:01:56]}  a6 {[%clk 0:01:56]} 20. Kb1 {[%clk 0:01:46]}  Bb4 {[%clk 0:01:48]} 21. Qc1 {[%clk 0:01:42]}  Nd5 {[%clk 0:01:42]} 22. Rh3 {[%clk 0:01:37]}  Bxc3 {[%clk 0:01:35]} 23. Bxc3 {[%clk 0:01:33]}  Kb8 {[%clk 0:01:30]} 24. Qd2 {[%clk 0:01:27]}  Rc8 {[%clk 0:01:29]} 25. Kb2 {[%clk 0:01:17]}  Nd6 {[%clk 0:01:19]} 26. Rc1 {[%clk 0:01:02]}  Bf5 {[%clk 0:01:11]} 27. Rg3 {[%clk 0:00:59]}  Be4 {[%clk 0:01:07]} 28. Bh3 {[%clk 0:00:57]}  Nf5 {[%clk 0:01:05]} 29. Bxf5 {[%clk 0:00:54]}  Bxf5 {[%clk 0:01:01]} 30. Ba5 {[%clk 0:00:50]}  Qd6 {[%clk 0:00:58]} 31. Nc3 {[%clk 0:00:42]}  Nxf4 {[%clk 0:00:54]} 32. Bb4 {[%clk 0:00:42]}  Qxb4 {[%clk 0:00:46]} 33. Qxf4+ {[%clk 0:00:42]}  Ka8 {[%clk 0:00:45]} 34. d5 {[%clk 0:00:42]}  Rhd8 {[%clk 0:00:43]} 35. g6 {[%clk 0:00:26]}  fxg6 {[%clk 0:00:34]} 36. dxe6 {[%clk 0:00:21]}  Qe7 {[%clk 0:00:33]} 37. Re1 {[%clk 0:00:19]}  Rc6 {[%clk 0:00:33]} 38. Rge3 {[%clk 0:00:13]}  cxb3 {[%clk 0:00:24]} 39. axb3 {[%clk 0:00:12]}  Rdc8 {[%clk 0:00:22]} 40. R1e2 {[%clk 0:00:12]}  Qf6 {[%clk 0:00:17]} 41. Qf3 {[%clk 0:00:08]}  Qe7 {[%clk 0:00:08]} 42. Qg3 {[%clk 0:00:08]}  Rxe6 {[%clk 0:00:06]} 43. Nd5 {[%clk 0:00:06]}  Qc5 {[%clk 0:00:06]} 44. Rc3 {[%clk 0:00:06]}  Rxe2 {[%clk 0:00:04]} 45. Rxc5 {[%clk 0:00:05]}  Rxc5 {[%clk 0:00:05]} 46. Qd6 {[%clk 0:00:04]}  Rexc2+ {[%clk 0:00:05]} 47. Ka3 {[%clk 0:00:03]}  a5 {[%clk 0:00:05]} 48. Nb6+ {[%clk 0:00:02]}  Ka7 {[%clk 0:00:06]} 49. Na4 {[%clk 0:00:01]}  Rc6 {[%clk 0:00:05]} 50. Qd4+ {[%clk 0:00:02]}  b6 {[%clk 0:00:06]} 51. Qxg7+ {[%clk 0:00:01]}  Ka6 {[%clk 0:00:06]} 52. Qg8 {[%clk 0:00:00]}  Rc8 {[%clk 0:00:05]} 0-1


[Site "https://www.chess.com"]

[Event "Titled Tuesday Blitz August 15 Late 2023"]
[White "Grigoriants, Sergey"]
[Black "Mekhitarian, Krikor Sevag"]
[WhiteFideId "4130804"]
[BlackFideId "2107660"]
[WhiteElo "2966"]
[BlackElo "2810"]
[Result "1-0"]
[Round "8"]
[TimeControl "180+1"]
[Date "2023.08.15"]
[WhiteClock "0:00:45"]
[BlackClock "0:00:12"]
[Board "10"]

1. d4 {[%clk 0:02:54]}  Nf6 {[%clk 0:02:59]} 2. c4 {[%clk 0:02:54]}  g6 {[%clk 0:02:58]} 3. f3 {[%clk 0:02:54]}  d5 {[%clk 0:02:51]} 4. cxd5 {[%clk 0:02:52]}  Nxd5 {[%clk 0:02:52]} 5. e4 {[%clk 0:02:53]}  Nb6 {[%clk 0:02:53]} 6. Nc3 {[%clk 0:02:53]}  Bg7 {[%clk 0:02:53]} 7. Be3 {[%clk 0:02:53]}  O-O {[%clk 0:02:54]} 8. Qd2 {[%clk 0:02:54]}  Nc6 {[%clk 0:02:55]} 9. O-O-O {[%clk 0:02:53]}  Qd6 {[%clk 0:02:55]} 10. h4 {[%clk 0:02:22]}  Rd8 {[%clk 0:02:53]} 11. d5 {[%clk 0:02:19]}  Na5 {[%clk 0:02:45]} 12. Nb5 {[%clk 0:02:11]}  Nac4 {[%clk 0:01:36]} 13. Bxc4 {[%clk 0:02:06]}  Nxc4 {[%clk 0:01:35]} 14. Nxd6 {[%clk 0:02:07]}  Nxd2 {[%clk 0:01:35]} 15. Nxc8 {[%clk 0:02:02]}  Nc4 {[%clk 0:01:30]} 16. Nxe7+ {[%clk 0:02:02]}  Kf8 {[%clk 0:01:28]} 17. Bc5 {[%clk 0:01:59]}  Bxb2+ {[%clk 0:01:13]} 18. Kb1 {[%clk 0:01:40]}  Ke8 {[%clk 0:00:52]} 19. Ne2 {[%clk 0:01:13]}  Bf6 {[%clk 0:00:41]} 20. Ng8 {[%clk 0:01:06]}  Bg7 {[%clk 0:00:29]} 21. Bd4 {[%clk 0:00:58]}  Kf8 {[%clk 0:00:24]} 22. Nf6 {[%clk 0:00:57]}  h6 {[%clk 0:00:18]} 23. Bc5+ {[%clk 0:00:45]}  Nd6 {[%clk 0:00:16]} 24. e5 {[%clk 0:00:45]}  Bxf6 {[%clk 0:00:12]} 25. exf6 {[%clk 0:00:45]} 1-0


[Site "https://www.chess.com"]

[Event "Titled Tuesday Blitz August 15 Late 2023"]
[White "Hambleton, Aman"]
[Black "Ibarra Jerez, Jose Carlos"]
[WhiteFideId "2606577"]
[BlackFideId "2226332"]
[WhiteElo "2799"]
[BlackElo "2899"]
[Result "0-1"]
[Round "8"]
[TimeControl "180+1"]
[Date "2023.08.15"]
[WhiteClock "0:00:02"]
[BlackClock "0:00:14"]
[Board "12"]

1. d4 {[%clk 0:03:00]}  Nf6 {[%clk 0:02:59]} 2. Bf4 {[%clk 0:02:57]}  d5 {[%clk 0:02:59]} 3. e3 {[%clk 0:02:58]}  c5 {[%clk 0:02:59]} 4. c3 {[%clk 0:02:58]}  Nc6 {[%clk 0:02:59]} 5. Nd2 {[%clk 0:02:58]}  e6 {[%clk 0:02:57]} 6. Ngf3 {[%clk 0:02:59]}  cxd4 {[%clk 0:02:54]} 7. exd4 {[%clk 0:02:59]}  Nh5 {[%clk 0:02:55]} 8. Be3 {[%clk 0:02:57]}  Bd6 {[%clk 0:02:54]} 9. g3 {[%clk 0:02:57]}  O-O {[%clk 0:02:52]} 10. Bd3 {[%clk 0:02:57]}  g6 {[%clk 0:02:17]} 11. O-O {[%clk 0:02:53]}  Ng7 {[%clk 0:02:14]} 12. Bh6 {[%clk 0:02:47]}  Re8 {[%clk 0:02:12]} 13. Re1 {[%clk 0:02:23]}  f6 {[%clk 0:02:08]} 14. Bxg7 {[%clk 0:02:14]}  Kxg7 {[%clk 0:02:07]} 15. c4 {[%clk 0:02:15]}  Bd7 {[%clk 0:01:55]} 16. a3 {[%clk 0:02:14]}  Rc8 {[%clk 0:01:51]} 17. Bf1 {[%clk 0:02:06]}  Bb8 {[%clk 0:01:49]} 18. Rc1 {[%clk 0:01:35]}  Ne7 {[%clk 0:01:40]} 19. c5 {[%clk 0:01:27]}  Nc6 {[%clk 0:01:24]} 20. b4 {[%clk 0:01:27]}  a6 {[%clk 0:01:24]} 21. Qb3 {[%clk 0:01:28]}  g5 {[%clk 0:01:16]} 22. h3 {[%clk 0:00:57]}  f5 {[%clk 0:01:10]} 23. b5 {[%clk 0:00:44]}  axb5 {[%clk 0:00:54]} 24. Bxb5 {[%clk 0:00:43]}  Na5 {[%clk 0:00:54]} 25. Qa4 {[%clk 0:00:33]}  Bxb5 {[%clk 0:00:53]} 26. Qxb5 {[%clk 0:00:34]}  g4 {[%clk 0:00:44]} 27. hxg4 {[%clk 0:00:25]}  fxg4 {[%clk 0:00:45]} 28. Ne5 {[%clk 0:00:26]}  Bxe5 {[%clk 0:00:45]} 29. Rxe5 {[%clk 0:00:27]}  Nc6 {[%clk 0:00:45]} 30. Re3 {[%clk 0:00:09]}  Nxd4 {[%clk 0:00:43]} 31. Qxb7+ {[%clk 0:00:02]}  Rc7 {[%clk 0:00:44]} 32. Qb4 {[%clk 0:00:03]}  Qf6 {[%clk 0:00:42]} 33. c6 {[%clk 0:00:02]}  Rec8 {[%clk 0:00:37]} 34. Rf1 {[%clk 0:00:02]}  Rxc6 {[%clk 0:00:33]} 35. Nb3 {[%clk 0:00:02]}  Nc2 {[%clk 0:00:32]} 36. Qb7+ {[%clk 0:00:02]}  R8c7 {[%clk 0:00:31]} 37. Qb8 {[%clk 0:00:02]}  Rc8 {[%clk 0:00:24]} 38. Qb7+ {[%clk 0:00:02]}  R6c7 {[%clk 0:00:24]} 39. Qb6 {[%clk 0:00:02]}  Nxe3 {[%clk 0:00:24]} 40. Qxe3 {[%clk 0:00:03]}  Rc3 {[%clk 0:00:24]} 41. Qa7+ {[%clk 0:00:03]}  R8c7 {[%clk 0:00:24]} 42. Qb6 {[%clk 0:00:03]}  R3c6 {[%clk 0:00:19]} 43. Qe3 {[%clk 0:00:03]}  e5 {[%clk 0:00:17]} 44. a4 {[%clk 0:00:02]}  Rc3 {[%clk 0:00:17]} 45. Qd2 {[%clk 0:00:01]}  Rxb3 {[%clk 0:00:15]} 46. Qxd5 {[%clk 0:00:02]}  Rbc3 {[%clk 0:00:14]} 47. a5 {[%clk 0:00:02]}  Rc1 {[%clk 0:00:14]} 48. Rxc1 {[%clk 0:00:01]}  Rxc1+ {[%clk 0:00:15]} 49. Kh2 {[%clk 0:00:01]}  Qxf2+ {[%clk 0:00:14]} 50. Qg2 {[%clk 0:00:01]}  Qxg2+ {[%clk 0:00:14]} 51. Kxg2 {[%clk 0:00:02]} 0-1


[Site "https://www.chess.com"]

[Event "Titled Tuesday Blitz August 15 Late 2023"]
[White "Grischuk, Alexander"]
[Black "Ghazarian, Kirk"]
[WhiteFideId "4126025"]
[BlackFideId "30908604"]
[WhiteElo "3030"]
[BlackElo "2756"]
[Result "1-0"]
[Round "8"]
[TimeControl "180+1"]
[Date "2023.08.15"]
[WhiteClock "0:00:43"]
[BlackClock "0:01:19"]
[Board "16"]

1. d4 {[%clk 0:03:00]}  d5 {[%clk 0:03:00]} 2. Nf3 {[%clk 0:03:00]}  Nf6 {[%clk 0:03:00]} 3. Bg5 {[%clk 0:03:00]}  Ne4 {[%clk 0:03:00]} 4. Bh4 {[%clk 0:03:00]}  c5 {[%clk 0:03:00]} 5. e3 {[%clk 0:03:00]}  Qb6 {[%clk 0:03:00]} 6. Nc3 {[%clk 0:03:00]}  Qb4 {[%clk 0:03:00]} 7. Bb5+ {[%clk 0:02:56]}  Nc6 {[%clk 0:02:56]} 8. O-O {[%clk 0:02:55]}  Nxc3 {[%clk 0:02:55]} 9. Bxc6+ {[%clk 0:02:55]}  bxc6 {[%clk 0:02:56]} 10. bxc3 {[%clk 0:02:55]}  Qxc3 {[%clk 0:02:54]} 11. Ne5 {[%clk 0:02:55]}  f6 {[%clk 0:02:48]} 12. Qh5+ {[%clk 0:02:54]}  g6 {[%clk 0:02:40]} 13. Nxg6 {[%clk 0:02:51]}  hxg6 {[%clk 0:02:41]} 14. Qxh8 {[%clk 0:02:40]}  cxd4 {[%clk 0:02:39]} 15. exd4 {[%clk 0:02:32]}  Qxd4 {[%clk 0:02:38]} 16. Rfe1 {[%clk 0:02:29]}  Kf7 {[%clk 0:02:28]} 17. Qh7+ {[%clk 0:02:09]}  Bg7 {[%clk 0:02:28]} 18. Rxe7+ {[%clk 0:02:03]}  Kxe7 {[%clk 0:02:29]} 19. Qxg7+ {[%clk 0:02:03]}  Kd6 {[%clk 0:02:21]} 20. Bxf6 {[%clk 0:02:02]}  Qe4 {[%clk 0:02:22]} 21. Bc3 {[%clk 0:01:51]}  Be6 {[%clk 0:02:16]} 22. Re1 {[%clk 0:01:50]}  Qf5 {[%clk 0:02:05]} 23. Qb7 {[%clk 0:01:29]}  Rc8 {[%clk 0:01:56]} 24. Be5+ {[%clk 0:01:09]}  Kc5 {[%clk 0:01:56]} 25. c3 {[%clk 0:01:04]}  a5 {[%clk 0:01:42]} 26. Qa7+ {[%clk 0:00:52]}  Kb5 {[%clk 0:01:42]} 27. a4+ {[%clk 0:00:49]}  Kxa4 {[%clk 0:01:19]} 28. Qb6 {[%clk 0:00:43]} 1-0


[Site "https://www.chess.com"]